bitfinex-derivatives/quotes_ETHF0:USTF0_20250518
["timestamp","ask_amount","ask_price","bid_price","bid_amount"]
[1747610051760,0.819,2440.8,2440.5,5.95923003]
[1747610051962,0.819,2440.8,2440.6,1.5545]
[1747610052162,2.3406,2440.8,2440.6,7.9545]
[1747610052365,1.5216,2440.8,2440.6,8.77352]
[1747610052665,1.5216,2440.8,2440.6,7.9545]
[1747610052959,3.2078,2440.9,2440.7,0.81899]
[1747610053147,4.02675,2440.9,2440.8,1.5545]
[1747610053356,4.02675,2440.9,2440.8,3.7645]
[1747610054259,4.02675,2440.9,2440.8,6.8225]
[1747610055056,3.2078,2440.9,2440.8,4.6125]
[1747610055256,3.2078,2440.9,2440.8,7.53148]
[1747610055457,3.2078,2440.9,2440.8,6.7125]
[1747610055658,2.34053,2441.0,2440.8,7.53147]
[1747610056259,0.81894,2440.9,2440.8,6.7125]
[1747610056562,0.81894,2440.9,2440.8,4.6125]
[1747610056760,0.81894,2440.9,2440.8,6.9425]
[1747610057969,0.81894,2440.9,2440.8,3.058]
[1747610058170,0.81894,2440.9,2440.8,5.408]
[1747610058771,0.81894,2440.9,2440.8,5.208]
[1747610058962,0.81894,2440.9,2440.8,3.058]
[1747610059162,4.02674,2440.9,2440.8,3.058]
[1747610059358,4.02674,2440.9,2440.8,5.268]
[1747610059962,4.02674,2440.9,2440.8,3.058]
[1747610060167,4.02674,2440.9,2440.8,5.238]
[1747610060771,4.02674,2440.9,2440.8,5.33018003]
[1747610061168,0.81894,2440.9,2440.8,5.33018003]
[1747610061567,0.81894,2440.9,2440.8,5.49018003]
[1747610061771,0.81892,2441.0,2440.8,7.89432003]
[1747610061967,0.81894,2440.9,2440.8,7.07538003]
[1747610062967,0.81892,2441.0,2440.8,7.89434003]
[1747610063273,0.81894,2440.9,2440.8,7.07538003]
[1747610064469,0.81894,2440.9,2440.8,7.01538003]
[1747610065072,8.10311586,2441.2,2440.8,7.01538003]
[1747610065377,0.81891,2441.0,2440.8,7.83433003]
[1747610065571,4.02674,2440.9,2440.8,5.43018003]
[1747610065771,4.02674,2440.9,2440.8,5.33018003]
[1747610065772,5.63774,2440.9,2440.8,5.33018003]
[1747610066074,2.42994,2440.9,2440.8,5.33018003]
[1747610066268,2.42994,2440.9,2440.8,5.46018003]
[1747610066669,5.68785586,2440.9,2440.8,5.46018003]
[1747610066869,5.68785586,2440.9,2440.8,3.15018003]
[1747610067162,5.68785586,2440.9,2440.8,5.47018003]
[1747610067977,4.07685586,2440.9,2440.8,6.66018003]
[1747610068477,4.07685586,2440.9,2440.8,9.19018003]
[1747610069180,4.07685586,2440.9,2440.8,5.22018003]
[1747610069477,4.07685586,2440.9,2440.8,3.15018003]
[1747610069671,4.07685586,2440.9,2440.8,9.93968003]
[1747610069872,0.81894,2440.9,2440.8,9.93968003]
[1747610073683,4.07683586,2441.0,2440.8,10.75864003]
[1747610073872,4.07683586,2441.0,2440.8,12.33024003]
[1747610074383,3.25791586,2441.0,2440.8,11.51128003]
[1747610074774,0.81894,2440.9,2440.8,11.51128003]
[1747610075279,0.81891,2441.0,2440.8,11.51128003]
[1747610075480,0.81894,2440.9,2440.8,11.51128003]
[1747610076481,1.5315,2441.1,2440.8,12.33024003]
[1747610076675,0.81892,2441.0,2440.8,12.33024003]
[1747610076880,0.81894,2440.9,2440.8,4.67968003]
[1747610077086,0.81894,2440.9,2440.8,5.30018003]
[1747610077286,0.81894,2440.9,2440.8,5.28018003]
[1747610077677,0.81893,2441.0,2440.8,6.94288003]
[1747610077985,0.81893,2441.0,2440.8,7.76185003]
[1747610078482,0.81894,2440.9,2440.8,7.76185003]
[1747610078671,0.81894,2440.9,2440.8,6.94288003]
[1747610078877,0.81894,2440.9,2440.8,7.76186003]
[1747610079184,0.81893,2441.0,2440.8,7.76186003]
[1747610079489,5.60831586,2441.1,2440.9,0.81894]
[1747610079681,5.60831586,2441.1,2441.0,1.5948]
[1747610079881,5.60831586,2441.1,2441.0,7.5248]
[1747610080083,5.60831586,2441.1,2441.0,10.5828]
[1747610080280,5.60831586,2441.1,2441.0,4.6528]
[1747610080480,4.07681586,2441.1,2441.0,4.6528]
[1747610080879,4.07681586,2441.1,2441.0,6.6728]
[1747610080880,0.8189,2441.1,2441.0,6.6728]
[1747610081385,0.8189,2441.1,2441.0,6.8428]
[1747610083383,6.46571586,2441.2,2441.1,0.81888]
[1747610083592,3.25791586,2441.2,2441.1,8.84568]
[1747610084578,3.25791586,2441.2,2441.1,13.84568]
[1747610084888,4.90958305,2441.4,2441.3,0.81881]
[1747610085089,4.90958305,2441.4,2441.3,20.04281]
[1747610085493,4.90958305,2441.4,2441.3,21.59161]
[1747610086387,5.72835305,2441.4,2441.3,21.59161]
[1747610086792,4.07668586,2441.4,2441.3,21.59161]
[1747610087288,3.25791586,2441.4,2441.3,21.59161]
[1747610088583,0.81871,2441.6,2441.5,0.81874]
[1747610088787,0.81871,2441.6,2441.5,7.06874]
[1747610089190,0.81871,2441.6,2441.5,11.74284]
[1747610089387,0.81871,2441.6,2441.5,5.098]
[1747610089593,2.48771,2441.6,2441.5,5.098]
[1747610089888,4.10331,2441.6,2441.5,3.058]
[1747610090791,1.65166719,2441.7,2441.6,0.81871]
[1747610091090,1.65166719,2441.7,2441.5,3.058]
[1747610091288,2.39281,2441.6,2441.5,5.278]
[1747610091494,2.39281,2441.6,2441.5,3.058]
[1747610091690,1.5741,2441.6,2441.5,5.028]
[1747610091995,1.5741,2441.6,2441.5,6.09674]
[1747610092504,1.5741,2441.6,2441.5,4.988]
[1747610092793,2.39281,2441.6,2441.5,3.058]
[1747610092994,1.5741,2441.6,2441.5,5.208]
[1747610093295,3.2078,2441.8,2441.7,0.81867]
[1747610093497,3.25791586,2441.9,2441.8,0.81864]
[1747610093793,6.46571586,2441.9,2441.6,1.5686]
[1747610093996,1.6551,2441.8,2441.6,7.8186]
[1747610094195,1.6551,2441.8,2441.7,0.81867]
[1747610094398,2.47374,2441.8,2441.7,0.01]
[1747610094892,0.81871,2441.6,2441.5,3.058]
[1747610095086,4.02651,2441.6,2441.5,3.058]
[1747610095498,5.68161,2441.6,2441.5,3.058]
[1747610097195,4.8629,2441.6,2441.5,1.01]
[1747610097502,3.2078,2441.6,2441.5,0.81874]
[1747610097796,3.2078,2441.6,2441.4,1.6556]
[1747610098001,3.2078,2441.6,2441.5,0.81874]
[1747610098296,3.2078,2441.6,2441.5,10.26674]
[1747610098892,2.43296,2441.8,2441.6,0.81871]
[1747610099196,2.43296,2441.8,2441.7,1.6556]
[1747610099396,2.43296,2441.8,2441.7,1.6856]
[1747610099594,1.6143,2441.8,2441.7,2.50427]
[1747610099899,1.6143,2441.8,2441.7,1.6856]
[1747610100100,4.90958305,2442.1,2441.8,0.81863]
[1747610100393,3.2078,2441.9,2441.6,3.058]
[1747610100598,0.81867,2441.7,2441.6,5.458]
[1747610100900,0.81867,2441.7,2441.6,3.058]
[1747610101398,0.81871,2441.6,2441.5,3.058]
[1747610101594,2.49531,2441.6,2441.5,3.058]
[1747610101899,10.70311,2441.6,2441.5,3.058]
[1747610102086,0.81877,2441.4,2441.3,0.09218003]
[1747610102698,19.06247,2441.4,2441.3,0.09218003]
[1747610104096,18.2437,2441.4,2440.3,6.4016]
[1747610104296,18.2437,2441.4,2440.3,3.058]
[1747610104297,4.02691,2440.4,2440.3,3.058]
[1747610104497,14.16691,2440.4,2440.3,3.058]
[1747610104695,19.16691,2440.4,2440.3,3.058]
[1747610104994,14.16691,2440.4,2440.3,5.078]
[1747610105195,3.2078,2440.4,2440.3,3.058]
[1747610105497,4.02691,2440.4,2440.3,4.988]
[1747610105699,5.67671,2440.4,2440.3,3.058]
[1747610105897,5.67671,2440.4,2440.3,5.198]
[1747610106200,5.67671,2440.4,2440.3,3.058]
[1747610106792,5.67671,2440.4,2440.3,5.408]
[1747610107193,4.8576,2440.4,2440.0,1.6567]
[1747610107393,0.81921,2440.1,2440.0,1.6567]
[1747610107903,14.9946,2440.4,2440.0,7.3567]
[1747610108104,4.8576,2440.4,2440.0,7.3567]
[1747610108309,4.02701,2440.1,2440.0,3.058]
[1747610108696,2.04815,2440.0,2438.9,51.434]
[1747610108898,4.02723,2439.5,2439.2,1.69439409]
[1747610109102,0.81945,2439.4,2439.3,0.08199073]
[1747610109298,0.81945,2439.4,2439.3,3.74439073]
[1747610109493,1.6422,2439.8,2439.3,3.74439073]
[1747610109494,4.85,2439.8,2439.3,3.74439073]
[1747610109700,1.6422,2439.8,2439.3,6.95219073]
[1747610109997,3.2078,2440.5,2439.6,3.2078]
[1747610110194,3.2078,2440.2,2439.7,13.3544]
[1747610110398,0.81927,2440.0,2439.8,1.6124]
[1747610110596,1.6422,2440.1,2439.8,8.1824]
[1747610110796,2.46143,2440.1,2439.8,8.1824]
[1747610111007,0.81928,2439.9,2439.8,8.1824]
[1747610111300,4.02708,2439.9,2439.8,3.058]
[1747610111501,4.02708,2439.9,2439.8,5.268]
[1747610111902,4.02708,2439.9,2439.8,3.058]
[1747610112699,14.15808,2439.9,2439.8,3.058]
[1747610112899,19.15808,2439.9,2439.8,0.08381922]
[1747610113095,0.81955,2439.1,2439.0,1.5699]
[1747610113298,0.81955,2439.1,2439.0,3.6499]
[1747610113498,0.81955,2439.1,2439.0,1.5699]
[1747610113806,2.47235,2439.1,2439.0,1.5699]
[1747610114305,2.47235,2439.1,2439.0,4.6279]
[1747610114910,2.47235,2439.1,2439.0,3.058]
[1747610115512,2.47235,2439.1,2439.0,2.16451]
[1747610116006,9.04825,2439.1,2439.0,2.16451]
[1747610116211,0.81972,2438.6,2438.5,1.5961]
[1747610116407,0.81972,2438.6,2437.9,10.148]
[1747610116408,3.2078,2438.6,2437.9,10.148]
[1747610116709,10.128,2438.7,2437.9,2.31]
[1747610116710,0.81991,2438.1,2437.9,2.31]
[1747610116910,10.127,2438.4,2438.0,1.6874]
[1747610117099,3.2078,2438.9,2438.1,10.148]
[1747610117406,4.09573,2440.4,2438.7,0.81967]
[1747610117407,2.48967,2439.1,2438.7,0.81967]
[1747610117604,0.81958,2439.0,2438.8,5.013]
[1747610117806,0.81958,2439.0,2438.8,10.533]
[1747610118001,3.2078,2438.9,2437.7,3.2078]
[1747610118209,10.125,2438.8,2438.3,1.6287]
[1747610118503,3.2078,2438.6,2438.3,3.5887]
[1747610118706,0.81978,2438.4,2438.3,7.6187]
[1747610118905,0.81978,2438.4,2438.3,3.6787]
[1747610119107,0.81978,2438.4,2438.3,4.6867]
[1747610119311,0.81978,2438.4,2438.3,3.058]
[1747610119702,0.81978,2438.4,2438.3,3.61018003]
[1747610119912,10.94378,2438.4,2438.3,5.13018003]
[1747610120205,13.3318,2438.6,2438.3,5.41018003]
[1747610120413,0.81978,2438.4,2438.3,5.41018003]
[1747610120602,13.3318,2438.6,2438.3,5.41018003]
[1747610120603,4.02752,2438.6,2438.3,5.41018003]
[1747610120803,0.81972,2438.6,2438.3,3.15018003]
[1747610121006,0.81975,2438.5,2438.3,3.15018003]
[1747610121205,0.81978,2438.4,2438.3,3.15018003]
[1747610122215,0.81978,2438.4,2438.3,0.09218003]
[1747610122506,10.94178,2438.4,2438.3,0.09218003]
[1747610124008,0.81978,2438.4,2438.3,2.10218003]
[1747610124307,3.2078,2438.9,2438.3,3.48018003]
[1747610124504,3.2078,2438.9,2438.4,10.152]
[1747610124810,4.02733,2439.2,2438.5,3.2078]
[1747610125011,3.2078,2438.9,2438.6,1.6505]
[1747610125212,3.2078,2438.9,2438.6,3.7305]
[1747610125401,0.81968,2438.7,2438.6,3.7305]
[1747610127409,1.6196,2438.8,2438.6,3.7305]
[1747610127610,13.3248,2439.2,2438.6,3.7305]
[1747610127812,4.9008,2439.2,2438.6,3.7305]
[1747610128313,0.81963,2438.9,2438.6,4.5502]
[1747610128516,3.2078,2438.9,2438.6,13.8835]
[1747610128714,1.693,2439.2,2438.6,13.8835]
[1747610129015,3.2078,2439.0,2438.6,13.8835]
[1747610129609,0.81968,2438.7,2438.6,3.7305]
[1747610129809,4.02748,2438.7,2438.6,3.7705]
[1747610130006,0.81971,2438.6,2438.5,3.058]
[1747610130210,2.36831,2438.6,2438.5,3.058]
[1747610132105,1.5486,2438.6,2438.3,0.09218003]
[1747610132311,3.2078,2438.7,2438.3,0.09218003]
[1747610132517,3.2078,2438.8,2438.3,0.09218003]
[1747610132717,1.5486,2438.7,2438.3,2.20218003]
[1747610132912,3.2078,2439.1,2438.3,12.35518003]
[1747610133120,0.81965,2438.8,2438.6,0.8197]
[1747610133319,0.81965,2438.8,2438.7,1.5682]
[1747610133519,0.81965,2438.8,2438.7,9.3768]
[1747610134212,3.2078,2439.1,2438.7,9.3768]
[1747610134412,4.7883,2439.1,2438.8,1.5986]
[1747610134817,0.81961,2438.9,2438.8,1.5986]
[1747610135016,0.81961,2438.9,2438.8,3.9086]
[1747610135213,0.81961,2438.9,2438.8,6.9666]
[1747610135614,0.81961,2438.9,2438.8,7.0366]
[1747610135814,4.7883,2439.1,2438.8,7.85623]
[1747610135815,0.81959,2439.0,2438.8,7.85623]
[1747610136122,0.81959,2439.0,2438.8,8.6888]
[1747610136622,0.81958,2439.0,2438.8,8.6888]
[1747610136920,6.46571586,2439.7,2438.9,10.109]
[1747610137115,3.25791586,2439.7,2439.5,0.8194]
[1747610137311,4.07727586,2439.7,2439.6,4.8824]
[1747610137614,4.07727586,2439.7,2439.6,6.8324]
[1747610137812,4.07727586,2439.7,2439.6,6.8624]
[1747610138415,4.07727586,2439.7,2439.6,4.8824]
[1747610138715,4.07727586,2439.7,2439.6,7.2724]
[1747610138921,3.25791586,2439.7,2439.6,7.2724]
[1747610139109,7.28506586,2439.7,2439.6,1.5818]
[1747610139314,0.81931,2439.8,2439.6,3.9618]
[1747610139518,11.7358,2439.9,2439.6,5.0413]
[1747610139719,0.81935,2439.7,2439.6,5.2713]
[1747610140120,0.81935,2439.7,2439.6,3.1213]
[1747610140416,0.81935,2439.7,2439.6,5.4313]
[1747610140616,0.81935,2439.7,2439.6,3.1213]
[1747610140920,0.81938,2439.6,2439.5,3.058]
[1747610141120,2.43418,2439.6,2439.5,3.058]
[1747610141328,0.81945,2439.4,2439.3,1.5395]
[1747610141822,0.81945,2439.4,2439.3,3.8495]
[1747610142114,0.81945,2439.4,2439.3,4.5975]
[1747610142423,4.02725,2439.4,2439.3,3.058]
[1747610143118,3.2078,2439.7,2439.3,7.0964]
[1747610143312,10.095,2439.8,2439.3,5.52586]
[1747610143313,1.6487,2439.8,2439.3,5.52586]
[1747610143521,0.81945,2439.4,2439.3,7.0464]
[1747610143825,0.81945,2439.4,2439.3,4.7064]
[1747610144226,0.81945,2439.4,2439.3,6.8064]
[1747610144625,0.81945,2439.4,2439.3,4.7064]
[1747610145428,0.81945,2439.4,2439.3,3.058]
[1747610145429,4.02725,2439.4,2439.3,3.058]
[1747610145921,9.02725,2439.4,2439.3,2.12077]
[1747610146123,0.81965,2438.8,2438.7,1.64968003]
[1747610146424,4.02745,2438.8,2438.7,3.83968003]
[1747610146829,4.02745,2438.8,2438.7,3.81968003]
[1747610147028,4.02745,2438.8,2438.7,1.64968003]
[1747610147230,9.02745,2438.8,2438.7,0.09218003]
[1747610147422,9.02745,2438.8,2438.7,3e-08]
[1747610147823,11.4055,2438.8,2437.9,13.2921]
[1747610148024,0.82003,2437.7,2437.4,3.2]
[1747610148336,0.82003,2437.7,2437.5,3.1334]
[1747610148539,1.6591,2437.9,2437.5,8.6834]
[1747610148841,0.82003,2437.7,2437.5,8.6834]
[1747610149345,1.6591,2437.9,2437.5,12.56145]
[1747610149346,0.81996,2437.9,2437.5,12.56145]
[1747610149646,0.81996,2437.9,2437.6,10.109]
[1747610149943,0.82002,2437.7,2437.6,16.639]
[1747610150837,0.82002,2437.7,2437.6,15.799]
[1747610151142,0.82002,2437.7,2437.6,11.6395]
[1747610151336,0.82002,2437.7,2437.6,13.6395]
[1747610151538,0.82002,2437.7,2437.6,11.6395]
[1747610151838,0.82002,2437.7,2437.6,13.9395]
[1747610152236,0.82002,2437.7,2437.6,11.6395]
[1747610153042,0.82002,2437.7,2437.6,13.7895]
[1747610153342,0.82002,2437.7,2437.6,13.7095]
[1747610153740,0.82002,2437.7,2437.6,11.6395]
[1747610153938,0.82002,2437.7,2437.6,13.5795]
[1747610154243,0.82002,2437.7,2437.6,13.5995]
[1747610154444,0.82002,2437.7,2437.6,13.9895]
[1747610154639,0.82002,2437.7,2437.6,13.6295]
[1747610154836,0.82002,2437.7,2437.6,11.6395]
[1747610155036,0.82005,2437.6,2437.5,3.15018003]
[1747610155237,0.82005,2437.6,2437.5,0.09218003]
[1747610155238,3.98895,2437.6,2437.5,0.09218003]
[1747610155638,10.90005,2437.6,2437.5,2.98218003]
[1747610156140,3.2078,2437.7,2437.5,6.04018003]
[1747610156346,4.02783,2437.7,2437.6,3.1266]
[1747610156544,0.82005,2437.6,2437.5,3.15018003]
[1747610156844,14.10583,2437.7,2437.5,3.15018003]
[1747610157044,3.2078,2437.7,2437.6,2.34725]
[1747610157243,3.2078,2437.7,2437.6,1.5272]
[1747610157545,4.02782,2437.7,2437.6,1.5272]
[1747610157743,4.02782,2437.7,2437.6,3.5072]
[1747610157939,3.2078,2437.7,2437.6,3.5072]
[1747610158248,4.02782,2437.7,2437.6,3.8272]
[1747610158847,0.82005,2437.6,2437.5,1.04952003]
[1747610159145,3.2078,2437.7,2437.5,3.058]
[1747610159351,0.81995,2437.9,2437.6,3.1686]
[1747610159651,10.076,2438.1,2437.7,1.6615]
[1747610159845,0.81993,2438.0,2437.8,1.5613]
[1747610160143,0.81995,2437.9,2437.8,3.8113]
[1747610160348,2.44435,2437.9,2437.8,4.6193]
[1747610160549,3.51206068,2438.3,2437.8,4.6193]
[1747610160852,0.81995,2437.9,2437.8,4.6193]
[1747610161238,0.81995,2437.9,2437.8,6.5893]
[1747610161645,3.2078,2438.0,2437.8,6.5893]
[1747610161845,1.6244,2438.2,2437.8,6.5893]
[1747610162043,3.25791586,2438.5,2437.9,12.12188]
[1747610162345,4.07761586,2438.7,2438.3,0.81979]
[1747610162552,4.07761586,2438.7,2438.4,15.68038]
[1747610162746,4.07761586,2438.7,2438.4,21.37038]
[1747610162951,4.07760586,2438.7,2438.4,20.5506]
[1747610163149,4.07761586,2438.7,2438.4,23.6086]
[1747610163341,0.81972,2438.6,2438.4,23.6086]
[1747610163541,3.25791586,2438.7,2438.4,23.6086]
[1747610163744,3.25791586,2438.7,2438.4,26.8164]
[1747610163945,3.25791586,2438.7,2438.4,16.7044]
[1747610164149,0.81975,2438.5,2438.4,7.8066]
[1747610164354,3.2078,2438.6,2438.4,10.8966]
[1747610164551,3.25791586,2438.7,2438.4,15.8966]
[1747610164742,3.25791586,2438.7,2438.5,0.81974]
[1747610165052,5.86e-06,2438.7,2438.6,12.45192]
[1747610165253,5.86e-06,2438.7,2438.6,23.71178892]
[1747610165452,3.95990013,2439.0,2438.7,0.81968]
[1747610165755,1.576,2439.5,2438.8,14.84]
[1747610165946,1.576,2439.5,2438.8,20.49]
[1747610166147,1.576,2439.5,2438.8,23.548]
[1747610166345,3.2078,2439.4,2438.8,20.3402]
[1747610166552,0.8196,2439.0,2438.8,20.3402]
[1747610166748,0.81961,2438.9,2438.8,10.2702]
[1747610167660,0.81961,2438.9,2438.8,4.6202]
[1747610167856,0.81961,2438.9,2438.8,6.9802]
[1747610168060,0.81961,2438.9,2438.8,4.6202]
[1747610168258,0.81961,2438.9,2438.8,6.5902]
[1747610169161,4.7572,2439.1,2438.8,6.5902]
[1747610169362,0.81958,2439.0,2438.8,6.5902]
[1747610169556,1.5959,2438.9,2438.8,4.6202]
[1747610169858,4.02737,2439.1,2438.8,6.8602]
[1747610170057,5.62328,2439.1,2438.8,6.8602]
[1747610170258,4.8037,2439.1,2438.8,6.8602]
[1747610170459,5.62327,2439.1,2438.8,6.9502]
[1747610170762,0.81961,2439.0,2438.8,6.7302]
[1747610170961,2.41551,2439.0,2438.8,6.7302]
[1747610171268,0.81961,2438.9,2438.8,4.6202]
[1747610171454,1.5959,2438.9,2438.8,4.6202]
[1747610171865,2.41551,2438.9,2438.8,4.6202]
[1747610172153,3.2078,2439.4,2438.8,5.4602]
[1747610172361,1.5758,2439.7,2439.5,0.8194]
[1747610172550,4.7805,2439.9,2439.7,0.81934]
[1747610172752,6.3563,2439.9,2439.6,1.5999]
[1747610173561,0.81935,2439.7,2439.6,1.5999]
[1747610174162,6.3563,2439.9,2439.6,1.5999]
[1747610174362,0.81935,2439.7,2439.6,3.8699]
[1747610174564,0.81935,2439.7,2439.6,1.5999]
[1747610175059,0.81938,2439.6,2439.5,3.058]
[1747610175261,4.02718,2439.6,2439.5,3.058]
[1747610175961,0.81936,2439.7,2439.5,3.058]
[1747610176255,3.2078,2439.9,2439.7,0.81933]
[1747610176457,3.2078,2439.9,2439.8,10.88631]
[1747610176665,1.65166719,2440.0,2439.9,0.81928]
[1747610176850,3.95990013,2440.6,2439.9,8.7253]
[1747610177055,3.95990013,2440.6,2440.4,0.81911]
[1747610177251,4.77894013,2440.6,2440.5,1.5884]
[1747610177457,3.95990013,2440.6,2440.5,9.54148]
[1747610177862,4.77894013,2440.6,2440.5,18.7894]
[1747610178059,0.81904,2440.6,2440.5,21.8474]
[1747610178267,0.81904,2440.6,2440.5,11.7804]
[1747610178462,3.32818145,2440.8,2440.5,21.8474]
[1747610178769,1.69968145,2440.8,2440.5,21.8474]
[1747610179162,2.51866145,2440.8,2440.5,22.66646]
[1747610179356,1.69968145,2440.8,2440.5,21.8474]
[1747610179567,0.81901,2440.7,2440.5,21.8474]
[1747610179964,14.07184,2440.6,2440.5,8.568]
[1747610180264,0.81918,2440.2,2440.0,1.4849]
[1747610180462,0.81918,2440.2,2440.0,1.6049]
[1747610181064,1.5502,2440.5,2440.0,7.7949]
[1747610181065,0.81921,2440.1,2440.0,7.7949]
[1747610181259,0.81928,2439.9,2439.8,10.064]
[1747610181459,4.02708,2439.9,2439.8,16.114]
[1747610181663,4.02708,2439.9,2439.8,6.05]
[1747610182060,4.02708,2439.9,2439.8,9.108]
[1747610182260,4.02708,2439.9,2439.8,10.5928]
[1747610182462,0.81928,2439.9,2439.8,9.108]
[1747610182659,1.5502,2440.1,2439.8,9.108]
[1747610182865,3.2078,2440.5,2439.8,10.5928]
[1747610183064,1.555,2440.4,2439.8,10.5928]
[1747610183264,0.81915,2440.3,2440.0,0.81924]
[1747610183562,1.555,2440.4,2440.1,1.4848]
[1747610183761,1.555,2440.4,2440.3,0.81914]
[1747610183962,1.555,2440.4,2440.2,0.81917]
[1747610184161,1.555,2440.4,2440.3,3.058]
[1747610184361,1.555,2440.4,2440.3,10.2928]
[1747610184773,0.81904,2440.6,2440.3,11.11193]
[1747610184967,2.34404,2440.6,2440.3,11.11193]
[1747610185271,1.525,2440.6,2440.3,11.11194]
[1747610185466,1.525,2440.6,2440.3,10.2928]
[1747610185666,3.2078,2440.8,2440.5,0.09218003]
[1747610185971,3.2078,2440.8,2440.6,1.6184]
[1747610186162,3.2078,2440.8,2440.6,7.92744]
[1747610186364,5.55178,2440.8,2440.6,7.1084]
[1747610186566,4.7328,2440.8,2440.6,7.92744]
[1747610186866,4.7328,2440.8,2440.6,7.1084]
[1747610187070,5.55178,2440.8,2440.6,7.1084]
[1747610187467,4.7328,2440.8,2440.6,5.49]
[1747610187666,4.7328,2440.8,2440.6,6.30904]
[1747610187972,5.55178,2440.8,2440.6,7.0165]
[1747610188667,0.81901,2440.7,2440.6,7.0165]
[1747610189672,5.55181,2440.8,2440.6,7.0165]
[1747610189968,0.81901,2440.7,2440.6,7.0165]
[1747610190173,0.81904,2440.6,2440.5,13.21318003]
[1747610190366,0.81904,2440.6,2440.5,3.16018003]
[1747610190573,0.81904,2440.6,2440.5,3.15018003]
[1747610190873,3.2078,2440.8,2440.5,6.48018003]
[1747610191068,1.6206,2441.1,2441.0,0.81891]
[1747610191268,1.6206,2441.1,2441.0,2.39]
[1747610191867,1.6206,2441.1,2441.0,3.9419]
[1747610192075,1.6206,2441.1,2441.0,17.0609]
[1747610192276,2.43948,2441.1,2441.0,3.058]
[1747610192470,17.46748,2441.1,2441.0,3.058]
[1747610193174,17.46748,2441.1,2440.5,0.09218003]
[1747610193175,0.81905,2440.6,2440.5,0.09218003]
[1747610193472,4.02685,2440.6,2440.5,0.09218003]
[1747610193673,1.5354,2440.8,2440.5,2.36218003]
[1747610193974,0.81903,2440.7,2440.6,1.5871]
[1747610194276,1.5354,2440.8,2440.6,3.6971]
[1747610194571,1.5354,2440.8,2440.5,3.15018003]
[1747610194776,4.02685,2440.6,2440.5,3.15018003]
[1747610195262,4.02685,2440.6,2440.5,0.09218003]
[1747610195465,7.15205,2440.6,2440.5,0.09218003]
[1747610195766,7.15205,2440.6,2440.5,2.02218003]
[1747610196267,7.15205,2440.6,2440.5,0.09218003]
[1747610196467,6.333,2440.6,2440.5,2.41218003]
[1747610196673,1.5354,2440.6,2440.5,2.41218003]
[1747610196875,1.5354,2440.6,2440.5,4.86176003]
[1747610197067,1.5354,2440.6,2440.5,5.59976003]
[1747610197268,1.5354,2440.6,2440.5,4.78068003]
[1747610197469,1.5354,2440.6,2440.5,7.04068003]
[1747610197870,2.35445,2440.6,2440.5,7.04068003]
[1747610198070,2.35445,2440.6,2440.5,7.09068003]
[1747610198778,1.5354,2440.6,2440.5,7.09068003]
[1747610199076,1.5354,2440.6,2440.5,7.90976003]
[1747610199275,1.5354,2440.6,2440.5,4.78068003]
[1747610199474,2.35445,2440.6,2440.5,7.10068003]
[1747610199772,1.5354,2440.6,2440.5,4.78068003]
[1747610199974,1.5354,2440.6,2440.5,7.13068003]
[1747610200276,3.2078,2440.9,2440.5,7.13068003]
[1747610200772,4.02676,2440.9,2440.6,0.81902]
[1747610200974,3.2078,2440.9,2440.7,1.6338]
[1747610201166,4.02676,2440.9,2440.7,3.7538]
[1747610201481,3.2078,2440.9,2440.6,3.058]
[1747610201678,1.5556,2440.8,2440.6,5.288]
[1747610201977,2.3746,2440.8,2440.6,4.6918]
[1747610202181,1.5556,2440.8,2440.5,3.15018003]
[1747610202373,1.5556,2440.8,2440.6,0.81902]
[1747610202574,0.81901,2440.7,2440.5,3.15018003]
[1747610202774,1.5556,2440.8,2440.5,5.18018003]
[1747610202971,1.5556,2440.8,2440.7,0.81901]
[1747610203176,3.2078,2440.9,2440.8,0.81898]
[1747610203376,3.2078,2440.9,2440.8,1.6137]
[1747610203571,4.02674,2440.9,2440.8,3.9337]
[1747610203774,4.02674,2440.9,2440.8,1.6137]
[1747610204278,4.02674,2440.9,2440.8,3.058]
[1747610205078,0.81905,2440.6,2440.5,0.09218003]
[1747610205279,4.02685,2440.6,2440.5,2.21218003]
[1747610206277,5.66015,2440.6,2440.5,0.09218003]
[1747610206483,4.8411,2440.6,2440.5,0.09218003]
[1747610206876,3.2078,2440.9,2440.8,0.81897]
[1747610207072,1.6333,2441.0,2440.9,0.81894]
[1747610207278,4.8284,2441.2,2441.1,0.81888]
[1747610207279,3.2078,2441.2,2441.1,0.81888]
[1747610207575,3.24216668,2441.3,2441.2,0.81884]
[1747610207780,5.54386018,2442.4,2441.2,61.41623157]
[1747610207974,5.54386018,2442.4,2442.3,4.02628]
[1747610208286,5.54386018,2442.4,2442.3,14.12128]
[1747610209081,5.54386018,2442.4,2442.3,10.91348]
[1747610209381,5.54386018,2442.4,2442.3,13.97148]
[1747610211286,5.54386018,2442.4,2442.3,14.06366003]
[1747610211583,5.54386018,2442.4,2442.3,13.24518003]
[1747610211884,9.57010018,2442.4,2442.3,3.15018003]
[1747610212186,4.02624,2442.4,2442.3,0.09218003]
[1747610212376,4.02624,2442.4,2442.3,2.41218003]
[1747610212576,5.63374,2442.4,2442.3,2.41218003]
[1747610212776,5.63374,2442.4,2442.3,0.09218003]
[1747610213185,4.8153,2442.4,2442.3,0.09218003]
[1747610214587,4.8153,2442.4,2442.3,0.91066003]
[1747610214786,4.8153,2442.4,2442.3,3.23066003]
[1747610214989,4.8153,2442.4,2442.3,0.09218003]